[Event "*** SCC Grand Prix: Titled Tuesday Blitz"]
[Site "Chess.com"]
[Date "2020.07.07"]
[Round "2"]
[White "Artyom_ChessMate"]
[Black "Gloomy_Wanderer"]
[Result "0-1"]
[WhiteElo "2506"]
[BlackElo "2752"]
[TimeControl "180+1"]
[EndTime "10:18:25 PDT"]
[Termination "Gloomy_Wanderer won on time"]

1. e4 {[%clk 0:03:00.9]} 1... c5 {[%clk 0:02:59.7]} 2. Nc3 {[%clk 0:02:58.5]}
2... Nc6 {[%clk 0:02:59.2]} 3. Bb5 {[%clk 0:02:57.6]} 3... Nd4 {[%clk
0:02:58.8]} 4. Nf3 {[%clk 0:02:57]} 4... a6 {[%clk 0:02:58.8]} 5. Bd3 {[%clk
0:02:49.3]} 5... e6 {[%clk 0:02:58.8]} 6. O-O {[%clk 0:02:43.2]} 6... Nc6 {[%clk
0:02:58.5]} 7. b3 {[%clk 0:02:30.3]} 7... g5 {[%clk 0:02:49.5]} 8. h3 {[%clk
0:02:17.7]} 8... Bg7 {[%clk 0:02:46.3]} 9. Bb2 {[%clk 0:02:17.8]} 9... d6 {[%clk
0:02:44.2]} 10. Re1 {[%clk 0:02:17.3]} 10... h6 {[%clk 0:02:43.5]} 11. Na4
{[%clk 0:02:15]} 11... Bxb2 {[%clk 0:02:41.3]} 12. Nxb2 {[%clk 0:02:15.9]} 12...
Nge7 {[%clk 0:02:40.7]} 13. Nc4 {[%clk 0:02:16.1]} 13... b5 {[%clk 0:02:39.8]}
14. Ne3 {[%clk 0:02:14]} 14... Ng6 {[%clk 0:02:39.1]} 15. Bf1 {[%clk 0:02:12.5]}
15... O-O {[%clk 0:02:28.7]} 16. d4 {[%clk 0:02:12.4]} 16... Qb6 {[%clk
0:02:16.3]} 17. d5 {[%clk 0:01:49.5]} 17... Nce5 {[%clk 0:02:16]} 18. Nxe5
{[%clk 0:01:44.6]} 18... Nxe5 {[%clk 0:02:12.4]} 19. a4 {[%clk 0:01:45.5]} 19...
Bd7 {[%clk 0:02:09.4]} 20. axb5 {[%clk 0:01:27.1]} 20... axb5 {[%clk 0:02:09.1]}
21. Rxa8 {[%clk 0:01:27.7]} 21... Rxa8 {[%clk 0:02:09.7]} 22. h4 {[%clk
0:01:12.5]} 22... Kg7 {[%clk 0:01:51.4]} 23. Qh5 {[%clk 0:01:05.5]} 23... f6
{[%clk 0:01:51.1]} 24. Ng4 {[%clk 0:00:31.6]} 24... Rh8 {[%clk 0:01:32.7]} 25.
Nxe5 {[%clk 0:00:30.2]} 25... dxe5 {[%clk 0:01:26.4]} 26. dxe6 {[%clk
0:00:22.2]} 26... Bxe6 {[%clk 0:01:24.4]} 27. Rd1 {[%clk 0:00:22.3]} 27... Qc6
{[%clk 0:01:13.5]} 28. Qe2 {[%clk 0:00:19.5]} 28... c4 {[%clk 0:01:08.3]} 29.
bxc4 {[%clk 0:00:19.6]} 29... bxc4 {[%clk 0:01:04.3]} 30. Qe3 {[%clk 0:00:17.3]}
30... Qc7 {[%clk 0:01:01.9]} 31. h5 {[%clk 0:00:16.1]} 31... Bf7 {[%clk
0:00:51.9]} 32. Be2 {[%clk 0:00:15.9]} 32... Rb8 {[%clk 0:00:49.2]} 33. g3
{[%clk 0:00:10.6]} 33... Rd8 {[%clk 0:00:44.8]} 34. Rxd8 {[%clk 0:00:09.5]}
34... Qxd8 {[%clk 0:00:45.7]} 35. Qa7 {[%clk 0:00:09.7]} 35... Qd4 {[%clk
0:00:45.8]} 36. Qb7 {[%clk 0:00:06.3]} 36... Qc3 {[%clk 0:00:36.9]} 37. Bg4
{[%clk 0:00:04.4]} 37... Qxc2 {[%clk 0:00:23.3]} 0-1

[Event "*** SCC Grand Prix: Titled Tuesday Blitz"]
[Site "Chess.com"]
[Date "2020.07.07"]
[Round "2"]
[White "Al_Shima"]
[Black "skslaviaorlova"]
[Result "1-0"]
[WhiteElo "2349"]
[BlackElo "1845"]
[TimeControl "180+1"]
[EndTime "10:18:25 PDT"]
[Termination "Al_Shima won by checkmate"]

1. b3 {[%clk 0:03:00.9]} 1... e5 {[%clk 0:02:56.8]} 2. Bb2 {[%clk 0:03:00.4]}
2... Nc6 {[%clk 0:02:57.3]} 3. e3 {[%clk 0:02:59.6]} 3... Nf6 {[%clk 0:02:56.3]}
4. Bb5 {[%clk 0:02:59.2]} 4... d6 {[%clk 0:02:56.6]} 5. Nf3 {[%clk 0:02:58.6]}
5... Be7 {[%clk 0:02:56]} 6. d4 {[%clk 0:02:58.5]} 6... exd4 {[%clk 0:02:55.1]}
7. Bxc6+ {[%clk 0:02:57.1]} 7... bxc6 {[%clk 0:02:54.5]} 8. Nxd4 {[%clk
0:02:56.7]} 8... c5 {[%clk 0:02:47.5]} 9. Qf3 {[%clk 0:02:55.6]} 9... Bg4 {[%clk
0:02:27.2]} 10. Qg3 {[%clk 0:02:38.3]} 10... cxd4 {[%clk 0:02:23]} 11. Bxd4
{[%clk 0:02:39.2]} 11... O-O {[%clk 0:02:10.1]} 12. Nd2 {[%clk 0:02:22.9]} 12...
c5 {[%clk 0:02:02.4]} 13. Bb2 {[%clk 0:02:20.9]} 13... Bf5 {[%clk 0:01:59.1]}
14. O-O-O {[%clk 0:02:19.3]} 14... g6 {[%clk 0:01:32.4]} 15. f3 {[%clk
0:02:06.3]} 15... Nd7 {[%clk 0:01:11]} 16. e4 {[%clk 0:02:02.1]} 16... Be6
{[%clk 0:01:10.7]} 17. h4 {[%clk 0:01:51.1]} 17... Bf6 {[%clk 0:01:00.5]} 18.
Qxd6 {[%clk 0:01:46.3]} 18... Bxb2+ {[%clk 0:01:00.4]} 19. Kxb2 {[%clk
0:01:47.2]} 19... Qf6+ {[%clk 0:01:00.4]} 20. c3 {[%clk 0:01:46.7]} 20... Rab8
{[%clk 0:00:55.5]} 21. h5 {[%clk 0:01:27.7]} 21... Ne5 {[%clk 0:00:54.5]} 22.
Qa6 {[%clk 0:01:02.5]} 22... Rfd8 {[%clk 0:00:49.5]} 23. Nb1 {[%clk 0:00:49]}
23... Nd3+ {[%clk 0:00:44.1]} 24. Rxd3 {[%clk 0:00:44.9]} 24... c4 {[%clk
0:00:40.7]} 25. Rd5 {[%clk 0:00:20.4]} 25... Qf4 {[%clk 0:00:24.9]} 26. Rxd8+
{[%clk 0:00:16.4]} 26... Rxd8 {[%clk 0:00:24.3]} 27. Rc1 {[%clk 0:00:15]} 27...
cxb3 {[%clk 0:00:19.8]} 28. axb3 {[%clk 0:00:15.9]} 28... Qe3 {[%clk 0:00:17.7]}
29. Rc2 {[%clk 0:00:14.3]} 29... Rb8 {[%clk 0:00:17.7]} 30. b4 {[%clk
0:00:13.8]} 30... Rb6 {[%clk 0:00:14.6]} 31. Qa5 {[%clk 0:00:12.4]} 31... Kg7
{[%clk 0:00:12.5]} 32. hxg6 {[%clk 0:00:12.1]} 32... hxg6 {[%clk 0:00:12.3]} 33.
Rd2 {[%clk 0:00:11.6]} 33... Rb7 {[%clk 0:00:09.1]} 34. Qe5+ {[%clk 0:00:11.3]}
34... Kg8 {[%clk 0:00:08.8]} 35. Rd8+ {[%clk 0:00:09.6]} 35... Kh7 {[%clk
0:00:08.9]} 36. Rh8# {[%clk 0:00:09.3]} 1-0

[Event "*** SCC Grand Prix: Titled Tuesday Blitz"]
[Site "Chess.com"]
[Date "2020.07.07"]
[Round "2"]
[White "Natalya_Buksa"]
[Black "Mykola-Bortnyk"]
[Result "0-1"]
[WhiteElo "2549"]
[BlackElo "2841"]
[TimeControl "180+1"]
[EndTime "10:18:26 PDT"]
[Termination "Mykola-Bortnyk won by resignation"]

1. d4 {[%clk 0:03:00.9]} 1... d5 {[%clk 0:02:55.8]} 2. Nc3 {[%clk 0:03:01.2]}
2... Nf6 {[%clk 0:02:54.3]} 3. Bf4 {[%clk 0:03:01.6]} 3... c5 {[%clk 0:02:54.5]}
4. e3 {[%clk 0:03:01.8]} 4... cxd4 {[%clk 0:02:54.2]} 5. exd4 {[%clk 0:03:02.7]}
5... a6 {[%clk 0:02:52.8]} 6. Nf3 {[%clk 0:03:03.2]} 6... Nc6 {[%clk 0:02:52.1]}
7. Ne5 {[%clk 0:03:03.6]} 7... Bd7 {[%clk 0:02:52.4]} 8. Nxd7 {[%clk 0:03:00.8]}
8... Qxd7 {[%clk 0:02:52.4]} 9. Be2 {[%clk 0:03:01]} 9... e6 {[%clk 0:02:52.2]}
10. O-O {[%clk 0:03:00.9]} 10... Bd6 {[%clk 0:02:52.8]} 11. Bxd6 {[%clk
0:02:45.5]} 11... Qxd6 {[%clk 0:02:53.7]} 12. Na4 {[%clk 0:02:43.9]} 12... Nd7
{[%clk 0:02:42.4]} 13. b3 {[%clk 0:02:33.7]} 13... b5 {[%clk 0:02:35.1]} 14. Nb2
{[%clk 0:02:33.5]} 14... b4 {[%clk 0:02:35.2]} 15. Qd2 {[%clk 0:02:31.8]} 15...
O-O {[%clk 0:02:32.9]} 16. Bf3 {[%clk 0:02:31.1]} 16... a5 {[%clk 0:02:31.9]}
17. Rac1 {[%clk 0:02:22.3]} 17... Rfc8 {[%clk 0:02:13]} 18. Rfe1 {[%clk
0:02:20.9]} 18... Nb6 {[%clk 0:01:54.7]} 19. c4 {[%clk 0:02:08.8]} 19... bxc3
{[%clk 0:01:50.5]} 20. Rxc3 {[%clk 0:02:08.3]} 20... Qb4 {[%clk 0:01:42.5]} 21.
Rd3 {[%clk 0:02:04.4]} 21... a4 {[%clk 0:01:29]} 22. Nd1 {[%clk 0:01:37.8]}
22... axb3 {[%clk 0:01:25.2]} 23. Qxb4 {[%clk 0:01:19.4]} 23... Nxb4 {[%clk
0:01:26.1]} 24. Rxb3 {[%clk 0:01:19.7]} 24... Nc2 {[%clk 0:01:26.5]} 25. Rf1
{[%clk 0:01:19.4]} 25... Nc4 {[%clk 0:01:24.1]} 26. Ne3 {[%clk 0:01:06.7]} 26...
N2xe3 {[%clk 0:01:20.3]} 27. fxe3 {[%clk 0:01:06.2]} 27... Nd2 {[%clk
0:01:19.8]} 28. Rb2 {[%clk 0:01:01.3]} 28... Nxf1 {[%clk 0:01:18.5]} 29. Kxf1
{[%clk 0:01:01.6]} 29... Rc3 {[%clk 0:01:19]} 30. Kf2 {[%clk 0:01:01.4]} 30...
Rca3 {[%clk 0:01:19.3]} 31. Rb7 {[%clk 0:00:57.3]} 31... Rxa2+ {[%clk
0:01:18.3]} 32. Kg3 {[%clk 0:00:57.8]} 32... g6 {[%clk 0:01:17.3]} 33. h4 {[%clk
0:00:57.9]} 33... Kg7 {[%clk 0:01:15]} 34. Kf4 {[%clk 0:00:58.2]} 34... h5
{[%clk 0:01:14]} 35. g4 {[%clk 0:00:41.9]} 35... hxg4 {[%clk 0:01:13.2]} 36.
Bxg4 {[%clk 0:00:42.4]} 36... Kf6 {[%clk 0:01:13.5]} 37. Bf3 {[%clk 0:00:40.2]}
37... Rh8 {[%clk 0:01:08.5]} 38. h5 {[%clk 0:00:33.3]} 38... gxh5 {[%clk
0:01:07.9]} 39. e4 {[%clk 0:00:33.7]} 39... dxe4 {[%clk 0:01:07.2]} 40. Bxe4
{[%clk 0:00:34.6]} 40... h4 {[%clk 0:01:01.8]} 41. d5 {[%clk 0:00:35.1]} 41...
h3 {[%clk 0:00:49.6]} 42. dxe6 {[%clk 0:00:12.3]} 42... fxe6 {[%clk 0:00:50.5]}
43. Rb1 {[%clk 0:00:12.3]} 43... Rh4+ {[%clk 0:00:47]} 44. Ke3 {[%clk
0:00:09.1]} 44... Ra3+ {[%clk 0:00:47.1]} 45. Bd3 {[%clk 0:00:09.2]} 45... h2
{[%clk 0:00:47.7]} 46. Rh1 {[%clk 0:00:09.1]} 46... Rh3+ {[%clk 0:00:48.1]} 47.
Kf4 {[%clk 0:00:08.1]} 47... Raxd3 {[%clk 0:00:45.9]} 48. Kg4 {[%clk 0:00:08.2]}
48... Rdg3+ {[%clk 0:00:44.5]} 49. Kf4 {[%clk 0:00:08.3]} 49... e5+ {[%clk
0:00:45]} 50. Ke4 {[%clk 0:00:08.3]} 50... Rg1 {[%clk 0:00:45.3]} 51. Rxh2
{[%clk 0:00:05.9]} 51... Rxh2 {[%clk 0:00:45.9]} 0-1

[Event "*** SCC Grand Prix: Titled Tuesday Blitz"]
[Site "Chess.com"]
[Date "2020.07.07"]
[Round "2"]
[White "QuintilianoR"]
[Black "andriipalchuk"]
[Result "1/2-1/2"]
[WhiteElo "2656"]
[BlackElo "2442"]
[TimeControl "180+1"]
[EndTime "10:18:26 PDT"]
[Termination "Game drawn by repetition"]

1. d4 {[%clk 0:03:00.9]} 1... Nf6 {[%clk 0:02:58.5]} 2. c4 {[%clk 0:03:01]} 2...
e6 {[%clk 0:02:58.7]} 3. Nf3 {[%clk 0:03:01.2]} 3... b6 {[%clk 0:02:59.2]} 4. g3
{[%clk 0:03:00.8]} 4... Ba6 {[%clk 0:02:58.8]} 5. b3 {[%clk 0:02:58.9]} 5...
Bb4+ {[%clk 0:02:56.4]} 6. Bd2 {[%clk 0:02:57.6]} 6... Be7 {[%clk 0:02:55.2]} 7.
Nc3 {[%clk 0:02:56.7]} 7... c6 {[%clk 0:02:53]} 8. e4 {[%clk 0:02:53.7]} 8... d5
{[%clk 0:02:52.3]} 9. Qc2 {[%clk 0:02:50.8]} 9... O-O {[%clk 0:02:48.1]} 10. Bd3
{[%clk 0:02:48.1]} 10... dxe4 {[%clk 0:02:37]} 11. Nxe4 {[%clk 0:02:46.6]} 11...
Nbd7 {[%clk 0:02:37.6]} 12. O-O-O {[%clk 0:02:38.2]} 12... Nxe4 {[%clk
0:02:33.8]} 13. Bxe4 {[%clk 0:02:37.1]} 13... Nf6 {[%clk 0:02:34.5]} 14. Bxc6
{[%clk 0:02:07.8]} 14... Rc8 {[%clk 0:02:32.2]} 15. Ne5 {[%clk 0:01:46]} 15...
Qxd4 {[%clk 0:02:06.6]} 16. Bc3 {[%clk 0:01:44.3]} 16... Qc5 {[%clk 0:02:06.4]}
17. b4 {[%clk 0:01:42.6]} 17... Qxc6 {[%clk 0:01:53.4]} 18. Nxc6 {[%clk
0:01:40.7]} 18... Rxc6 {[%clk 0:01:54.3]} 19. b5 {[%clk 0:01:39.5]} 19... Rxc4
{[%clk 0:01:51.5]} 20. bxa6 {[%clk 0:01:36.5]} 20... Rfc8 {[%clk 0:01:50.7]} 21.
Kb1 {[%clk 0:01:20.7]} 21... Rxc3 {[%clk 0:01:50.5]} 22. Qe2 {[%clk 0:01:09.7]}
22... Ba3 {[%clk 0:01:39.5]} 23. Ka1 {[%clk 0:00:40]} 23... h6 {[%clk 0:01:21]}
24. Rb1 {[%clk 0:00:37.5]} 24... Rc2 {[%clk 0:01:12.7]} 25. Qd3 {[%clk
0:00:33.1]} 25... Be7 {[%clk 0:01:06.4]} 26. Rb2 {[%clk 0:00:30.6]} 26... R2c7
{[%clk 0:01:00.8]} 27. Rd1 {[%clk 0:00:19.1]} 27... Nd5 {[%clk 0:01:00.6]} 28.
a3 {[%clk 0:00:14]} 28... Bf6 {[%clk 0:00:57.1]} 29. Ka2 {[%clk 0:00:14.3]}
29... Nc3+ {[%clk 0:00:21.9]} 30. Kb3 {[%clk 0:00:13.6]} 30... Nxd1 {[%clk
0:00:22.4]} 31. Qxd1 {[%clk 0:00:14.4]} 31... Bxb2 {[%clk 0:00:21.7]} 32. Kxb2
{[%clk 0:00:15.3]} 32... Rc2+ {[%clk 0:00:22.1]} 33. Kb3 {[%clk 0:00:15.7]}
33... R2c3+ {[%clk 0:00:17.4]} 34. Kb4 {[%clk 0:00:16.1]} 34... R8c4+ {[%clk
0:00:15.8]} 35. Kb5 {[%clk 0:00:16.1]} 35... Rc5+ {[%clk 0:00:16.3]} 36. Kb4
{[%clk 0:00:16.4]} 36... R3c4+ {[%clk 0:00:17]} 37. Kb3 {[%clk 0:00:16.8]} 37...
Rc7 {[%clk 0:00:16.7]} 38. Qd8+ {[%clk 0:00:15.5]} 38... Kh7 {[%clk 0:00:17.3]}
39. Qd3+ {[%clk 0:00:15.8]} 39... Kg8 {[%clk 0:00:16.8]} 40. Qd8+ {[%clk
0:00:15.8]} 40... Kh7 {[%clk 0:00:16.4]} 41. Qd3+ {[%clk 0:00:16.4]} 41... Kg8
{[%clk 0:00:17]} 42. Qd8+ {[%clk 0:00:16.3]} 1/2-1/2

[Event "*** SCC Grand Prix: Titled Tuesday Blitz"]
[Site "Chess.com"]
[Date "2020.07.07"]
[Round "2"]
[White "Munkhzul_Turmunkh"]
[Black "Parkas"]
[Result "0-1"]
[WhiteElo "2609"]
[BlackElo "2336"]
[TimeControl "180+1"]
[EndTime "10:18:26 PDT"]
[Termination "Parkas won by resignation"]

1. e4 {[%clk 0:03:00.9]} 1... g6 {[%clk 0:03:00.2]} 2. d4 {[%clk 0:02:59.4]}
2... Bg7 {[%clk 0:03:00.5]} 3. Nf3 {[%clk 0:02:58.1]} 3... d6 {[%clk 0:02:59.9]}
4. Nc3 {[%clk 0:02:55.2]} 4... Nf6 {[%clk 0:02:59.4]} 5. Be2 {[%clk 0:02:55.1]}
5... O-O {[%clk 0:02:59]} 6. O-O {[%clk 0:02:55.2]} 6... e6 {[%clk 0:02:59.6]}
7. Bg5 {[%clk 0:02:41.5]} 7... h6 {[%clk 0:02:55]} 8. Bf4 {[%clk 0:02:41.4]}
8... Nc6 {[%clk 0:02:53.8]} 9. Qd2 {[%clk 0:02:39.9]} 9... Kh7 {[%clk
0:02:52.9]} 10. Rad1 {[%clk 0:02:38.6]} 10... b6 {[%clk 0:02:43.6]} 11. h3
{[%clk 0:02:37.9]} 11... Bb7 {[%clk 0:02:42.1]} 12. Rfe1 {[%clk 0:02:36.6]}
12... Ne7 {[%clk 0:02:39.7]} 13. Bf1 {[%clk 0:02:35.9]} 13... d5 {[%clk
0:02:39.3]} 14. e5 {[%clk 0:02:32.4]} 14... Ne4 {[%clk 0:02:39.4]} 15. Qe3
{[%clk 0:02:28.6]} 15... Nf5 {[%clk 0:02:38.3]} 16. Qd3 {[%clk 0:02:28]} 16...
c5 {[%clk 0:02:32.6]} 17. dxc5 {[%clk 0:02:23]} 17... bxc5 {[%clk 0:02:09.5]}
18. Nxe4 {[%clk 0:02:21.4]} 18... dxe4 {[%clk 0:02:09.4]} 19. Qxd8 {[%clk
0:02:21]} 19... Rfxd8 {[%clk 0:02:06.7]} 20. Nd2 {[%clk 0:02:17]} 20... g5
{[%clk 0:01:53.8]} 21. Bh2 {[%clk 0:02:16.4]} 21... Rd7 {[%clk 0:01:50]} 22. Bb5
{[%clk 0:02:02.8]} 22... Rd5 {[%clk 0:01:46.2]} 23. Bc4 {[%clk 0:01:50.2]} 23...
Rd7 {[%clk 0:01:43.2]} 24. g4 {[%clk 0:01:47]} 24... Nd4 {[%clk 0:01:40.2]} 25.
c3 {[%clk 0:01:46.8]} 25... Nc2 {[%clk 0:01:30.3]} 26. Re2 {[%clk 0:01:46.2]}
26... Rad8 {[%clk 0:01:30.4]} 27. Bb5 {[%clk 0:01:45.3]} 27... Rd5 {[%clk
0:01:26.5]} 28. Bc4 {[%clk 0:01:29]} 28... R5d7 {[%clk 0:01:25.3]} 29. Kf1
{[%clk 0:01:25.2]} 29... e3 {[%clk 0:01:20.6]} 30. fxe3 {[%clk 0:01:20.4]} 30...
Rxd2 {[%clk 0:01:10.3]} 31. Rdxd2 {[%clk 0:01:15.9]} 31... Rxd2 {[%clk
0:01:09.6]} 32. Rxd2 {[%clk 0:01:16]} 32... Nxe3+ {[%clk 0:01:09.9]} 33. Kf2
{[%clk 0:01:16.5]} 33... Nxc4 {[%clk 0:01:08.9]} 34. Rd7 {[%clk 0:01:17.1]}
34... Bd5 {[%clk 0:01:03.3]} 35. Rxf7 {[%clk 0:01:17]} 35... Nxb2 {[%clk
0:01:03.1]} 36. Rxa7 {[%clk 0:01:15.8]} 36... Kg6 {[%clk 0:01:00.1]} 37. a4
{[%clk 0:01:11.3]} 37... Bxe5 {[%clk 0:00:55.7]} 38. Bxe5 {[%clk 0:01:09]} 38...
Nd3+ {[%clk 0:00:56]} 39. Ke3 {[%clk 0:01:09.5]} 39... Nxe5 {[%clk 0:00:56.9]}
40. a5 {[%clk 0:01:09.1]} 40... Bg2 {[%clk 0:00:44.5]} 41. Re7 {[%clk
0:00:56.5]} 41... Kf6 {[%clk 0:00:44.3]} 42. Rh7 {[%clk 0:00:56.4]} 42... Nf7
{[%clk 0:00:44.7]} 43. a6 {[%clk 0:00:53.9]} 43... Kg6 {[%clk 0:00:43.4]} 44.
Kf2 {[%clk 0:00:49.7]} 44... Bc6 {[%clk 0:00:39.9]} 45. Rxf7 {[%clk 0:00:41.9]}
45... Kxf7 {[%clk 0:00:40]} 46. Ke3 {[%clk 0:00:40.5]} 46... Ke7 {[%clk
0:00:37.9]} 47. Kd3 {[%clk 0:00:36.9]} 47... Kd6 {[%clk 0:00:38.3]} 48. Kc4
{[%clk 0:00:36.8]} 48... e5 {[%clk 0:00:38.1]} 49. a7 {[%clk 0:00:34.2]} 49...
e4 {[%clk 0:00:35]} 50. Kb3 {[%clk 0:00:32.4]} 50... Kd5 {[%clk 0:00:34.3]} 51.
Kc2 {[%clk 0:00:31.1]} 51... Kc4 {[%clk 0:00:34.5]} 52. Kd2 {[%clk 0:00:31.3]}
52... Kb5 {[%clk 0:00:32.2]} 53. Ke3 {[%clk 0:00:30.7]} 53... Ka6 {[%clk
0:00:32.3]} 0-1

[Event "*** SCC Grand Prix: Titled Tuesday Blitz"]
[Site "Chess.com"]
[Date "2020.07.07"]
[Round "2"]
[White "Mazetovic"]
[Black "AttilaTurzo"]
[Result "1-0"]
[WhiteElo "2744"]
[BlackElo "2505"]
[TimeControl "180+1"]
[EndTime "10:18:28 PDT"]
[Termination "Mazetovic won by resignation"]

1. e4 {[%clk 0:03:00.9]} 1... c5 {[%clk 0:02:59.3]} 2. Nf3 {[%clk 0:02:59.5]}
2... d6 {[%clk 0:02:59.8]} 3. Bb5+ {[%clk 0:02:58.1]} 3... Bd7 {[%clk
0:02:59.1]} 4. Bxd7+ {[%clk 0:02:57.8]} 4... Qxd7 {[%clk 0:02:58.2]} 5. O-O
{[%clk 0:02:56.4]} 5... Nf6 {[%clk 0:02:56.3]} 6. Re1 {[%clk 0:02:55.7]} 6... e6
{[%clk 0:02:54]} 7. c3 {[%clk 0:02:54.9]} 7... Nc6 {[%clk 0:02:35.2]} 8. d4
{[%clk 0:02:54.6]} 8... cxd4 {[%clk 0:02:35.6]} 9. cxd4 {[%clk 0:02:54.9]} 9...
d5 {[%clk 0:02:36.2]} 10. e5 {[%clk 0:02:55.3]} 10... Ne4 {[%clk 0:02:36.6]} 11.
Nbd2 {[%clk 0:02:55.5]} 11... Nxd2 {[%clk 0:02:34.5]} 12. Bxd2 {[%clk
0:02:55.6]} 12... Be7 {[%clk 0:02:34.5]} 13. Rc1 {[%clk 0:02:55.2]} 13... O-O
{[%clk 0:02:34.1]} 14. Rc3 {[%clk 0:02:54.3]} 14... Rac8 {[%clk 0:02:28.6]} 15.
h4 {[%clk 0:02:38.9]} 15... f5 {[%clk 0:02:09.8]} 16. exf6 {[%clk 0:02:32.3]}
16... Bxf6 {[%clk 0:02:09.9]} 17. Bg5 {[%clk 0:02:30.5]} 17... Qd6 {[%clk
0:01:55.7]} 18. Rce3 {[%clk 0:02:14.8]} 18... Rce8 {[%clk 0:01:51.5]} 19. Bxf6
{[%clk 0:02:03.3]} 19... gxf6 {[%clk 0:01:47.2]} 20. Qe2 {[%clk 0:01:48.5]}
20... Nd8 {[%clk 0:01:46.7]} 21. h5 {[%clk 0:01:45.3]} 21... Kh8 {[%clk
0:01:41.4]} 22. g3 {[%clk 0:01:41.3]} 22... Re7 {[%clk 0:01:38.3]} 23. Nh4
{[%clk 0:01:39.6]} 23... Rg7 {[%clk 0:01:31.2]} 24. Kh2 {[%clk 0:01:22.7]} 24...
Rg5 {[%clk 0:01:29.3]} 25. h6 {[%clk 0:01:20.8]} 25... Rfg8 {[%clk 0:01:27.1]}
26. Rxe6 {[%clk 0:00:59.4]} 26... Nxe6 {[%clk 0:01:19]} 27. Qxe6 {[%clk
0:00:59.2]} 27... Qxe6 {[%clk 0:01:13.6]} 28. Rxe6 {[%clk 0:00:59]} 28... f5
{[%clk 0:01:02.3]} 29. Rf6 {[%clk 0:00:42.9]} 29... Rh5 {[%clk 0:01:02.5]} 30.
f4 {[%clk 0:00:32.8]} 30... Re8 {[%clk 0:00:46.5]} 31. Kg2 {[%clk 0:00:30.8]}
31... Kg8 {[%clk 0:00:45.7]} 32. Nxf5 {[%clk 0:00:27.6]} 32... Re2+ {[%clk
0:00:44.2]} 33. Kf3 {[%clk 0:00:27.5]} 33... Rhh2 {[%clk 0:00:41.2]} 34. Rd6
{[%clk 0:00:18]} 34... Kf7 {[%clk 0:00:39.6]} 35. Kg4 {[%clk 0:00:16.4]} 35...
Rxb2 {[%clk 0:00:36.5]} 36. Rd7+ {[%clk 0:00:14.5]} 36... Ke6 {[%clk 0:00:35.9]}
37. Rxh7 {[%clk 0:00:13.1]} 37... a5 {[%clk 0:00:32.9]} 38. Re7+ {[%clk
0:00:12.4]} 38... Kf6 {[%clk 0:00:32.6]} 39. h7 {[%clk 0:00:12.8]} 39... a4
{[%clk 0:00:32.4]} 40. Rd7 {[%clk 0:00:11.7]} 40... Rb5 {[%clk 0:00:28.8]} 41.
Nh4 {[%clk 0:00:11.6]} 41... Rxa2 {[%clk 0:00:21.6]} 42. h8=Q+ {[%clk
0:00:11.5]} 1-0

[Event "*** SCC Grand Prix: Titled Tuesday Blitz"]
[Site "Chess.com"]
[Date "2020.07.07"]
[Round "2"]
[White "mikheeva86"]
[Black "Kotofeyca"]
[Result "0-1"]
[WhiteElo "1912"]
[BlackElo "2358"]
[TimeControl "180+1"]
[EndTime "10:18:29 PDT"]
[Termination "Kotofeyca won by resignation"]

1. e4 {[%clk 0:03:00.9]} 1... c5 {[%clk 0:02:59.5]} 2. Nc3 {[%clk 0:02:59.7]}
2... a6 {[%clk 0:02:57]} 3. g3 {[%clk 0:03:00.1]} 3... b5 {[%clk 0:02:56.6]} 4.
Bg2 {[%clk 0:03:00.5]} 4... Bb7 {[%clk 0:02:56.7]} 5. d3 {[%clk 0:03:00.6]} 5...
g6 {[%clk 0:02:56]} 6. Be3 {[%clk 0:03:00.3]} 6... d6 {[%clk 0:02:52.3]} 7. Qd2
{[%clk 0:03:00.1]} 7... Bg7 {[%clk 0:02:52.1]} 8. f4 {[%clk 0:02:57.8]} 8... e6
{[%clk 0:02:47.9]} 9. Nf3 {[%clk 0:02:58.2]} 9... Ne7 {[%clk 0:02:47.8]} 10. O-O
{[%clk 0:02:57.8]} 10... Nbc6 {[%clk 0:02:47.8]} 11. d4 {[%clk 0:02:41.6]} 11...
cxd4 {[%clk 0:02:26.3]} 12. Nxd4 {[%clk 0:02:39.9]} 12... Na5 {[%clk 0:02:26.7]}
13. Bf2 {[%clk 0:02:20.8]} 13... Nc4 {[%clk 0:02:23.1]} 14. Qc1 {[%clk
0:02:17.3]} 14... Rc8 {[%clk 0:02:22]} 15. Nce2 {[%clk 0:02:13.7]} 15... O-O
{[%clk 0:02:17.5]} 16. b3 {[%clk 0:02:07.3]} 16... Na5 {[%clk 0:02:05.1]} 17.
Rb1 {[%clk 0:01:48.9]} 17... e5 {[%clk 0:01:58.8]} 18. Nf3 {[%clk 0:01:19.5]}
18... Bxe4 {[%clk 0:01:54.9]} 19. fxe5 {[%clk 0:01:18.1]} 19... dxe5 {[%clk
0:01:52.8]} 20. c3 {[%clk 0:01:14.3]} 20... Qd3 {[%clk 0:01:37.8]} 21. Ne1
{[%clk 0:01:07.7]} 21... Qxe2 {[%clk 0:01:32.8]} 22. Rb2 {[%clk 0:01:03.9]}
22... Qg4 {[%clk 0:01:04.7]} 23. h3 {[%clk 0:00:58.9]} 23... Qf5 {[%clk
0:00:26.7]} 24. g4 {[%clk 0:00:46.2]} 24... Qe6 {[%clk 0:00:18.1]} 25. Bxe4
{[%clk 0:00:45.1]} 25... f5 {[%clk 0:00:18.3]} 26. gxf5 {[%clk 0:00:44.1]} 26...
gxf5 {[%clk 0:00:19.2]} 27. Bg2 {[%clk 0:00:41]} 27... e4 {[%clk 0:00:19.6]} 28.
Rc2 {[%clk 0:00:32.8]} 28... Nd5 {[%clk 0:00:19.4]} 29. c4 {[%clk 0:00:31.4]}
29... bxc4 {[%clk 0:00:19.7]} 30. bxc4 {[%clk 0:00:30.6]} 30... Nb4 {[%clk
0:00:19.2]} 31. Re2 {[%clk 0:00:26.4]} 31... Rxc4 {[%clk 0:00:19.3]} 32. Qa3
{[%clk 0:00:24.3]} 32... Nac6 {[%clk 0:00:16.2]} 33. Nf3 {[%clk 0:00:20.9]}
33... Rc3 {[%clk 0:00:15.5]} 34. Ng5 {[%clk 0:00:18]} 34... Qg6 {[%clk
0:00:13.4]} 35. Qxc3 {[%clk 0:00:13.2]} 35... Bxc3 {[%clk 0:00:12.7]} 36. h4
{[%clk 0:00:10.3]} 36... Bd4 {[%clk 0:00:11.5]} 0-1